Cogmind - Beta 15 @@@ ROGUE MODE // 2025.06.29 @ 14:38:57 Player: Minty Result: Self-destructed Performance ------------- Evolutions (9) 4500 Regions Visited (22) 4400 Robots Destroyed (227) 1135 Value Destroyed (12636) 12636 Prototype IDs (22) 440 Alien Tech Used (0) 0 Bonus (10166) 10166 TOTAL SCORE: 33277 Bonus ------- High Alert Combat Kills 1763 Follower Combat Kills 2556 Entered Garrisons 1400 Used RIF Installer 4000 Entered DSFs 500 Friendly Fire -53 Cogmind --------- Core Integrity 65/1600 Matter 20/300 Energy 99/100 System Corruption 4% Temperature Cool (0) Movement Core (50) Location -1/Access Parts ------- > --- POWER (2) -------- (None) > --- PROPULSION (6) --- (None) > --- UTILITY (14) ----- Faulty Spectral Analyzer Advanced Targeting Computer Improved Hacking Suite Advanced System Shield Relay Coupler [Grunt] (26) Improved System Guard > --- WEAPON (3) ------- (None) > --- INVENTORY (5) ---- Long-range Sensor Array Relay Coupler [Proto] (9) Relay Coupler [Proto] (9) Enhanced Quantum Rifle Improved Remote Datajack Peak State ------------ > --- POWER ------------ Micro Antimatter Reactor Micro Antimatter Reactor > --- PROPULSION ------- Combat Linear Gravjet Combat Linear Gravjet Combat Linear Gravjet Combat Linear Gravjet Combat Linear Gravjet Combat Linear Gravjet > --- UTILITY ---------- Experimental Heat Sink Experimental Heat Sink High-capacity Storage Unit Enhanced Optical Array Advanced Target Analyzer Advanced Target Analyzer Relay Coupler [NC] Relay Coupler [Swarmer] Relay Coupler [Grunt] Relay Coupler [Sentry] Relay Coupler [Specialist] Relay Coupler [Hunter] > --- WEAPON ----------- Hypervelocity Railgun Hypervelocity Railgun Advanced Remote Datajack > --- INVENTORY -------- Micro Antimatter Reactor Biometal Heavy Treads Biometal Heavy Treads Improved Antigrav System Improved Antigrav System Advanced Shield Generator Relay Coupler [Swarmer] Relay Coupler [Demolisher] Relay Coupler [Proto] Relay Coupler [Proto] Relay Coupler [Proto] Relay Coupler [Proto] Relay Coupler [Proto] Enhanced Quantum Rifle Enhanced Quantum Rifle Enhanced Quantum Rifle Smartbomb Launcher [Rating: 164] Favorites ----------- Power Heavy Ion Engine Engine Heavy Ion Engine Power Core Micro Fission Core Reactor Micro Antimatter Reactor Propulsion Carbon-fiber Leg Treads Light Treads Leg Carbon-fiber Leg Hover Unit Combat Linear Gravjet Flight Unit Improved Cesium-ion Thruster Utility High-capacity Storage Unit Device Advanced Heat Sink Storage High-capacity Storage Unit Processor Enhanced Optical Array Hackware System Shield Protection Centrium Medium Armor Plating Weapon Advanced Beam Cannon Energy Gun Dispersion Rifle Energy Cannon Advanced Beam Cannon Ballistic Gun Gauss Rifle Ballistic Cannon Linear Accelerator Launcher Smartbomb Launcher Special Weapon Improved Remote Datajack Impact Weapon Great Maul Special Melee Weapon Datajack Build | -11 -10 -10 -9 -9 -9 -8 -7 -7 -7 -7 -6 -6 -5 -5 -5 -5 -4 -3 -2 -2 -2 -1 ------- Run | Yrd Mat Min Mat Sto Gar Mat Fac Gar Fac Gar Fac Gar Fac Gar Fac Gar Fac Res Res DSF Gar Acc Slots Evolved 18 | . . . 2 . . 2 2 . . . 2 . 2 . . . 2 2 2 . . 2 Power 1 | . . . . . . . . . . . . . 1 . . . . . . . . . Propulsion 4 | . . . . . . 1 . . . . 2 . 1 . . . . . . . . . Utility 12 | . . . 2 . . 1 2 . . . . . . . . . 2 1 2 . . 2 Weapon 1 | . . . . . . . . . . . . . . . . . . 1 . . . . Parts Attached 270 | . 10 . 8 2 20 15 3 23 2 8 5 30 5 21 1 4 24 24 2 19 16 28 Power 28 | . 1 . 2 1 2 . . 4 . . . 2 1 2 . . 2 3 . 2 2 4 Engine 7 | . 1 . 2 1 1 . . 1 . . . . . 1 . . . . . . . . Core 5 | . . . . . 1 . . 2 . . . . . 1 . . 1 . . . . . Reactor 16 | . . . . . . . . 1 . . . 2 1 . . . 1 3 . 2 2 4 Propulsion 69 | . 4 . 1 1 6 3 1 4 1 2 1 11 1 6 . 2 9 4 . 9 . 3 Treads 25 | . 4 . 1 . 6 . . . . . . 2 1 . . . 5 3 . 3 . . Leg 24 | . . . . . . 3 1 1 . . . 7 . 6 . 2 4 . . . . . Wheel . | . . . . . . . . . . . . . . . . . . . . . . . Hover 9 | . . . . . . . . . . . . . . . . . . . . 6 . 3 Flight 11 | . . . . 1 . . . 3 1 2 1 2 . . . . . 1 . . . . Utility 117 | . 2 . 5 . 8 5 2 11 1 6 3 9 3 10 1 2 9 10 2 2 10 16 Device 31 | . 2 . 4 . 3 . . . . . . 4 3 2 . . . 6 . 1 1 5 Storage 4 | . . . . . 1 . . . . . . . . 1 . . 1 1 . . . . Processor 12 | . . . . . . . . . . . 1 1 . . . . 1 1 1 1 3 3 Hackware 58 | . . . . . 2 4 2 11 1 5 2 4 . 6 1 2 7 . . . 6 5 Protection 12 | . . . 1 . 2 1 . . . 1 . . . 1 . . . 2 1 . . 3 Artifact . | . . . . . . . . . . . . . . . . . . . . . . . Weapon 56 | . 3 . . . 4 7 . 4 . . 1 8 . 3 . . 4 7 . 6 4 5 Energy Gun 15 | . . . . . . 6 . . . . . 5 . . . . 2 . . 1 1 . Energy Cannon 15 | . 2 . . . . . . 1 . . . 1 . . . . . 5 . 4 . 2 Ballistic Gun 8 | . . . . . 3 . . . . . . . . . . . 1 . . . 3 1 Ballistic Cannon 3 | . . . . . . . . . . . . 1 . . . . . 1 . . . 1 Launcher 7 | . 1 . . . 1 . . . . . 1 1 . 1 . . 1 . . 1 . . Special Weapon 6 | . . . . . . 1 . 2 . . . . . 1 . . . 1 . . . 1 Impact Weapon 1 | . . . . . . . . 1 . . . . . . . . . . . . . . Slashing Weapon . | . . . . . . . . . . . . . . . . . . . . . . . Piercing Weapon . | . . . . . . . . . . . . . . . . . . . . . . . Special Melee Weapon 1 | . . . . . . . . . . . . . . 1 . . . . . . . . Unidentified Prototypes 11 | . 1 . . 1 . 2 . . . . 1 . . . . . . 4 . . . 2 Corrupted Parts 2 | . . . . . . . . . . . . . . 2 . . . . . . . . System Corruption 5 | . . . . . . . . . . . . . . 5 . . . . . . . . Parts Lost 79 | . 1 . . . 3 1 . 4 . 4 . 7 1 9 . 1 3 4 . 6 5 30 Power 9 | . . . . . . . . . . . . . . 1 . . . 1 . 1 1 5 Propulsion 18 | . . . . . 1 . . 2 . 1 . 2 1 . . 1 . 1 . 2 . 7 Utility 37 | . . . . . 1 1 . 1 . 2 . 3 . 6 . . 2 1 . 1 3 16 Weapon 15 | . 1 . . . 1 . . 1 . 1 . 2 . 2 . . 1 1 . 2 1 2 Highest Loss Streak 20 | . 1 . . . 2 1 . 2 . 2 . 4 1 5 . 1 2 2 . 4 3 20 To Critical Strikes 1 | . . . . . . . . . . . . . . . . . . . . . 1 . Average Backups 17 | . 7 8 7 8 16 19 19 19 19 18 19 19 19 18 18 18 17 17 15 15 16 17 Power 1 | . 3 3 2 2 1 1 2 2 2 2 2 2 1 . . . . . 1 . . . Propulsion 1 | . 1 . . . . . . 2 3 3 1 3 . . 1 . 1 1 . 1 3 1 Utility 10 | . 1 2 2 2 10 16 12 12 11 12 14 10 14 12 12 12 9 9 8 8 8 9 Weapon 3 | . 1 3 3 4 2 1 3 1 1 . 1 2 3 3 5 4 6 5 6 5 4 6 Tool/Special . | . . . . . . . . . . . . . . . . . . . . . . . Unused Backups 62 | . 14 . 2 2 14 2 1 2 . 1 1 6 1 1 . . . 2 . 1 3 9 Power 8 | . 3 . 1 1 . . . . . . . 2 . 1 . . . . . . . . Propulsion 15 | . 5 . . . . . . . . 1 . 3 . . . . . 1 . . 3 2 Utility 25 | . 2 . 1 . 10 1 . 2 . . . 1 1 . . . . 1 . . . 6 Weapon 14 | . 4 . . 1 4 1 1 . . . 1 . . . . . . . . 1 . 1 Tool/Special . | . . . . . . . . . . . . . . . . . . . . . . . Average Slot Usage (%) 93 | . 96 100 96 100 99 98 95 89 88 95 88 92 98 96 92 94 94 89 92 84 95 82 Engine 4 | . 14 14 11 11 8 9 7 3 7 7 6 1 . 2 5 5 1 . . . . . Core 1 | . . . . . 2 . . 3 . . . . . 3 5 5 5 1 . . . . Reactor 2 | . . . . . . . . . . . . 4 11 4 . . 3 6 8 7 7 7 Treads 8 | . 14 28 22 22 21 . . . . . . . 6 6 5 1 3 18 17 7 . . Leg 9 | . 13 . . . . 25 23 9 . . . 16 26 27 29 33 25 . . . . . Hover 2 | . . . . . . . . . . . . . . . . . . . . 9 26 22 Flight 5 | . . . . . . . . 13 23 23 26 12 . . . . . . 4 1 . . Device 8 | . 10 14 21 22 14 3 . . . . . 7 23 18 8 6 3 8 8 8 7 7 Storage 7 | . 14 14 11 11 11 9 7 7 7 7 6 6 5 5 5 5 5 4 4 8 4 3 Processor 1 | . . . . . . . . . . . . . . . . . 1 4 6 5 11 16 Hackware 22 | . . . . . 8 19 44 42 42 42 39 28 10 14 24 24 33 23 17 17 23 20 Protection 3 | . . . 8 11 9 12 . . . 2 . 1 . . . . . 4 10 6 . 1 Energy Gun 2 | . 5 . . . . 11 5 2 . . . 5 10 4 . 3 3 . . . . . Energy Cannon 6 | . 14 28 22 22 12 . . 2 . 6 3 . . . . 1 . 12 8 6 . . Ballistic Gun 2 | . 6 . . . 9 3 . . . . . . . . . . 2 . . . 6 1 Special Weapon 1 | . . . . . . 2 5 3 7 3 3 2 . . . 2 3 . 4 . 3 1 Peak Build Rating 164 | . 11 11 16 18 30 39 44 51 50 55 70 95 110 109 94 93 115 152 149 163 164 160 Average Rating 72 | . 8 11 14 16 25 36 41 42 45 50 63 73 108 100 91 88 101 138 146 139 156 142 On Entrance 68 | 6 6 11 11 16 17 29 33 44 46 49 54 70 95 108 94 89 87 115 140 149 146 160 Naked Turns . | . . . . . . . . . . . . . . . . . . . . . . . Heaviest Build 125 | 14 19 19 29 30 64 72 53 59 51 60 59 85 102 102 65 68 70 113 118 125 83 96 Greatest Support 225 | 20 40 40 40 40 40 51 51 49 18 18 30 104 104 104 104 119 200 212 157 225 84 84 Greatest Overweight (x) 5 | . . . . . 1 3 1 3 3 3 1 2 1 1 . . . . . 5 . 1 Average Overweight (x) . | . . . . . . . . 1 2 2 1 . . . . . . . . . . . Largest Inventory Capacity 20 | . 8 8 8 8 20 20 20 20 20 20 20 20 20 20 20 20 20 20 20 20 20 20 Average Capacity 18 | . 8 8 8 8 17 20 20 20 20 20 20 20 20 20 20 20 20 20 20 20 20 19 Most Carried 20 | . 8 8 8 8 20 20 20 20 20 20 20 20 20 20 20 20 20 20 18 20 20 20 Average Carried 17 | . 7 8 7 8 16 19 19 19 19 19 19 19 19 18 19 19 19 19 17 18 19 17 Final Capacity 20 | 8 8 8 8 8 20 20 20 20 20 20 20 20 20 20 20 20 20 20 20 20 20 5 Final Carried 20 | 6 8 8 8 8 20 20 20 19 20 20 20 20 20 20 20 20 20 18 17 20 18 5 Class Distribution -------------------- 30% | Bothacker-Mutant 28% | Botlord-Mutant 14% | Scavenger-Mutant 12% | Botlord-Tank 8% | Mutant Dominant Class ---------------- Mutant | -10/Materials Mutant | -10/Mines Mutant | -9/Materials Scavenger-Mutant | -9/Storage Scavenger-Mutant | -9/Garrison Bothacker-Mutant | -8/Materials Bothacker-Mutant | -7/Factory Bothacker-Mutant | -7/Garrison Bothacker-Mutant | -7/Factory Bothacker-Mutant | -7/Garrison Botlord-Mutant | -6/Factory Scavenger-Mutant | -6/Garrison Botlord-Mutant | -5/Factory Botlord-Mutant | -5/Garrison Botlord-Mutant | -5/Factory Botlord-Mutant | -5/Garrison Botlord-Mutant | -4/Factory Botlord-Tank | -3/Research Botlord-Tank | -2/Research Botlord-Tank | -2/DSF Botlord-Gunner | -2/Garrison Botlord-Mutant | -1/Access Resources | -11 -10 -10 -9 -9 -9 -8 -7 -7 -7 -7 -6 -6 -5 -5 -5 -5 -4 -3 -2 -2 -2 -1 ----------- Run | Yrd Mat Min Mat Sto Gar Mat Fac Gar Fac Gar Fac Gar Fac Gar Fac Gar Fac Res Res DSF Gar Acc Matter Collected 6741 | 200 304 10 80 30 493 126 232 679 60 178 89 593 259 579 42 483 423 458 . 397 799 227 Remotely 334 | . 304 . 30 . . . . . . . . . . . . . . . . . . . Salvage Created 10574 | . 606 223 323 257 1310 547 64 224 56 173 91 408 518 923 111 293 353 2627 . 502 676 289 Parts 542 | . 32 17 22 14 80 24 8 17 4 16 6 13 18 38 4 7 12 149 . 14 40 7 Haulers Intercepted 7 | . 1 . . 2 . 2 . . . . . . . . . . . 2 . . . . Recyclers Shooed 4 | . 1 . . 1 . 1 . . . . . . . . . . . . . . . 1 Parts Field Recycled . | . . . . . . . . . . . . . . . . . . . . . . . Retrieved Matter . | . . . . . . . . . . . . . . . . . . . . . . . Parts Self-Destructed . | . . . . . . . . . . . . . . . . . . . . . . . Prevented . | . . . . . . . . . . . . . . . . . . . . . . . Kills | -11 -10 -10 -9 -9 -9 -8 -7 -7 -7 -7 -6 -6 -5 -5 -5 -5 -4 -3 -2 -2 -2 -1 ------- Run | Yrd Mat Min Mat Sto Gar Mat Fac Gar Fac Gar Fac Gar Fac Gar Fac Gar Fac Res Res DSF Gar Acc Combat Hostiles Destroyed 169 | . 7 6 4 3 25 5 1 8 1 4 2 8 9 17 3 4 6 32 . 10 11 3 Guns 39 | . 2 . . . 8 3 1 5 . . . 4 4 3 . 1 1 . . . 7 . Cannons 67 | . 3 6 3 3 14 . . . 1 4 2 2 . 1 . . 1 24 . 3 . . AOE 56 | . 2 . . . 3 2 . 2 . . . 2 5 11 3 3 4 5 . 7 4 3 Classes Destroyed 20 | . 5 1 3 . 4 1 1 . . 1 . 1 1 . . 1 . 1 . . . . Worker 9 | . 1 . . 1 . 1 . . . . . . 1 . . . . 4 . . . 1 Builder 14 | . 1 . 1 . . . 1 . . . . . 1 . . . . 10 . . . . Tunneler 3 | . . . . . . . . . . . . . 1 . . . . 1 . . . 1 Hauler 7 | . 1 . . 2 . 2 . . . . . . . . . . . 2 . . . . Recycler 13 | . 3 2 1 1 . 2 . . . . . . 1 . . . . 3 . . . . Mechanic 5 | . . . . . 2 1 . . . . . . 1 . . . . . . . . 1 Operator 2 | . . . 1 . . . . . . . . . 1 . . . . . . . . . Watcher 1 | . . . 1 . . . . . . . . . . . . . . . . . . . Swarmer 43 | . . 6 . 3 3 . . 6 . . 1 1 . 7 . . . 8 . 5 3 . Cutter 4 | . . . . . . . . . . . . . . . . 1 . 3 . . . . Saboteur 1 | . . . . . . . . . . 1 . . . . . . . . . . . . Grunt 60 | . 7 . 1 . 9 2 . 1 1 . . 3 4 6 2 2 8 7 . 3 2 2 Brawler 6 | . . . . . 1 1 . . . 1 . . . 1 . 1 . . . . . 1 Sentry 15 | . . . 3 . 6 . . . . . . 1 2 . . . . 2 . . 1 . Demolisher 1 | . . . . . . 1 . . . . . . . . . . . . . . . . Specialist 6 | . . . . . 3 1 . . . . . 1 . . . . . . . 1 . . Hunter 9 | . . . . . . . 1 . . . 1 . 2 . 1 . 1 . . . 3 . Programmer 25 | . . . . . 4 . . 1 . 2 . 1 1 3 . . . 11 . . 2 . Heavy 2 | . . . . . . . . . . . . . . . . . . 1 . 1 . . Behemoth 1 | . . . . . . . . . . . . 1 . . . . . . . . . . Best Kill Streak 9 | . 5 5 2 3 5 6 2 5 1 2 1 2 6 3 3 3 3 9 . 5 4 3 Combat Bots Only 5 | . 4 3 2 3 5 4 1 5 1 2 1 2 4 3 3 3 3 5 . 5 4 3 Max Kills in Single Turn 4 | . 2 2 1 1 3 4 2 2 1 1 1 1 2 3 3 1 2 4 . 4 2 1 Gunslinging . | . . . . . . . . . . . . . . . . . . . . . . . Exploded 4 | . 2 . . . 2 2 . 2 . . . 1 1 3 3 1 2 4 . 4 2 1 Melee . | . . . . . . . . . . . . . . . . . . . . . . . Uniques/NPCs Destroyed . | . . . . . . . . . . . . . . . . . . . . . . . Combat | -11 -10 -10 -9 -9 -9 -8 -7 -7 -7 -7 -6 -6 -5 -5 -5 -5 -4 -3 -2 -2 -2 -1 -------- Run | Yrd Mat Min Mat Sto Gar Mat Fac Gar Fac Gar Fac Gar Fac Gar Fac Gar Fac Res Res DSF Gar Acc Hostile Shots Fired 1400 | . 32 15 16 16 104 53 18 78 1 39 7 132 83 53 6 17 43 145 2 97 98 345 Missed 499 | . 6 5 6 4 36 15 4 25 1 12 4 46 23 17 1 6 19 39 . 36 43 151 Hits 901 | . 26 10 10 12 68 38 14 53 . 27 3 86 60 36 5 11 24 106 2 61 55 194 Melee 8 | . . . . . . . . . . 1 . . . . . . . 7 . . . . Projectile 893 | . 26 10 10 12 68 38 14 53 . 26 3 86 60 36 5 11 24 99 2 61 55 194 AOE 5 | . . . . . . 4 . . . . . . . 1 . . . . . . . . Critical Strikes 46 | . . . 2 . 4 2 . 1 . 2 . 1 2 1 1 . . 11 1 4 5 9 Actively Blocked 3 | . . . . . . . . . . . . 1 . . . . . . . . . 2 Part Disruptions 4 | . . . . . . . . . . 1 . . . . . . . 1 . . 1 1 Damage Taken 17314 | . 385 77 138 91 952 1034 158 841 . 515 41 1127 554 467 73 202 536 2488 103 1727 1283 4522 Core 3447 | . 59 24 13 37 131 195 16 328 . 153 18 216 53 19 23 25 42 232 . 130 198 1535 Absorbed by Shields 1518 | . . . . . . . . 16 . 14 . 46 503 304 . 6 . 39 36 436 118 . Redirected to Shielding 367 | . . . . . . . . . . 11 . 33 . 5 . . . . . . . 318 Regen/Repaired (Parts) 326 | . . . . . . . . . . . . . . . . . 193 . . . . 133 Core Remaining (%) 72 | 100 . 66 . . 54 64 . . . 29 . 72 . . . 88 96 82 . . 77 . Volleys Fired 689 | . 25 10 13 11 71 20 30 71 8 31 9 49 34 56 2 40 21 85 . 26 46 31 Largest 3 | . 2 2 2 2 2 2 2 1 1 1 1 2 2 2 1 1 2 3 . 3 3 2 Hottest 353 | . 136 136 136 136 136 126 122 90 30 90 30 176 176 182 46 88 131 240 . 353 145 240 Shots Fired 1120 | . 49 20 26 22 140 38 37 70 8 31 9 65 68 82 2 41 30 238 . 40 69 35 Gun 375 | . 22 . . . 50 34 14 19 . . . 32 59 49 . 24 12 . . . 56 4 Cannon 507 | . 24 20 26 22 88 . . 12 1 23 6 12 . 10 . . 1 233 . 23 . 6 Launcher 72 | . 3 . . . 2 2 . 2 . . . 5 9 11 1 8 8 2 . 13 4 2 Special 166 | . . . . . . 2 23 37 7 8 3 16 . 12 1 9 9 3 . 4 9 23 Kinetic 139 | . 13 . . . 50 4 . . . . . 6 . . . . 6 . . . 55 5 Thermal 719 | . 24 20 26 22 88 30 14 31 1 23 6 36 59 49 . 24 6 233 . 21 1 5 Explosive 72 | . 3 . . . 2 2 . 2 . . . 5 9 11 1 8 8 2 . 13 4 2 Electromagnetic 24 | . 9 . . . . . . . . . . 2 . 10 . . 1 . . 2 . . Robot Hit Streak 32 | . 6 5 7 4 13 9 5 13 2 7 6 15 17 26 28 32 5 11 . 10 9 15 Robot Miss Streak 5 | . 3 2 2 2 4 3 5 2 1 2 2 3 3 2 . 2 2 5 . 2 3 2 Penetration Max 1 | . . . . . 1 . . . . . . . . . . . . . . . 1 . Secondary Targets 1 | . . . . . . . . . . . . . . . . . . . . . 1 . Max Gunslinging Chain 1 | . . . . . . . . . . . . . . . . . . . . . 1 . Shots Hit Robots 675 | . 31 11 18 10 82 27 17 47 5 17 6 51 47 71 2 28 18 102 . 23 37 25 Core Hits 380 | . 20 8 6 7 53 17 3 11 1 4 3 14 28 38 7 16 22 58 . 30 23 11 Critical Kills 13 | . . . 1 . . . . 1 . . . . . . . 1 . 3 . . 7 . Critical Parts Destroyed 21 | . . . . . . . . . . . . 2 . 4 . 3 . . . . 12 . Critical Strikes 52 | . 1 . 1 . . 3 . 2 . . . 6 3 9 . 4 1 3 . . 19 . Burn 14 | . . . . . . 3 . 1 . . . 3 3 4 . . . . . . . . Meltdown 5 | . . . 1 . . . . 1 . . . . . . . . . 3 . . . . Destroy 29 | . . . . . . . . . . . . 2 . 4 . 4 . . . . 19 . Blast 1 | . . . . . . . . . . . . 1 . . . . . . . . . . Corrupt 3 | . 1 . . . . . . . . . . . . 1 . . 1 . . . . . Melee Attacks 10 | . . . . . . . . 1 . . . . . 9 . . . . . . . . Impact 1 | . . . . . . . . 1 . . . . . . . . . . . . . . Slashing . | . . . . . . . . . . . . . . . . . . . . . . . Piercing . | . . . . . . . . . . . . . . . . . . . . . . . Sneak Attacks 4 | . . . . . . . . . . . . . . 4 . . . . . . . . Combat Hostiles . | . . . . . . . . . . . . . . . . . . . . . . . Follow-up Attacks . | . . . . . . . . . . . . . . . . . . . . . . . Damage Inflicted 27226 | . 714 281 407 234 2261 640 100 575 28 509 108 1256 2433 3159 547 1594 1297 5911 . 2950 1165 1057 Guns 5372 | . 212 . . . 556 437 100 240 . . . 556 1067 1222 . 537 110 . . . 288 47 Cannons 10535 | . 281 280 397 230 1357 . . 270 28 509 108 410 . 456 . . 46 5379 . 682 . 102 Explosions 10755 | . 215 . . . 343 203 . 65 . . . 290 1366 1481 547 1057 1141 428 . 2256 705 658 Melee . | . . . . . . . . . . . . . . . . . . . . . . . Ramming 564 | . 6 1 10 4 5 . . . . . . . . . . . . 104 . 12 172 250 Kinetic 1351 | . 123 . . . 556 25 . . . . . 256 . . . . 56 . . . 288 47 Thermal 14532 | . 369 280 397 230 1357 412 100 510 28 509 108 637 1338 1222 176 537 54 5379 . 644 . 245 Explosive 10077 | . 127 . . . 343 203 . 65 . . . 290 1095 1481 371 1057 1141 428 . 2256 705 515 Electromagnetic 702 | . 89 . . . . . . . . . . 73 . 456 . . 46 . . 38 . . Impact . | . . . . . . . . . . . . . . . . . . . . . . . Slashing . | . . . . . . . . . . . . . . . . . . . . . . . Piercing . | . . . . . . . . . . . . . . . . . . . . . . . Highest Corruption 11 | . . . . . 1 . . 1 1 5 . . 1 7 7 9 . 11 . 1 5 4 Average Corruption 3 | . . . . . 1 . . 1 1 3 . . 1 5 7 8 . 7 . 1 3 3 Corruption Purged . | . . . . . . . . . . . . . . . . . . . . . . . Corruption Blocked . | . . . . . . . . . . . . . . . . . . . . . . . Effects 145 | . . . . . 13 . . 5 1 22 . . . 31 2 19 . 35 . 3 8 6 Message Errors 46 | . . . . . 5 . . 1 . 8 . . . 8 1 7 . 12 . . 3 1 Matter Fused 30 | . . . . . 3 . . 2 . 5 . . . 5 . 5 . 7 . 1 1 1 Heat Flow Errors 18 | . . . . . 1 . . 1 . 3 . . . 4 . 1 . 5 . 1 2 . Energy Discharges 12 | . . . . . . . . . . 2 . . . 6 . 1 . 2 . . 1 . Parts Rejected 1 | . . . . . . . . . . 1 . . . . . . . . . . . . Parts Fused 2 | . . . . . 1 . . . . 1 . . . . . . . . . . . . Data Loss (minor) 20 | . . . . . 2 . . . . 1 . . . 4 1 3 . 4 . 1 . 4 Data Loss (major) 9 | . . . . . 1 . . . 1 1 . . . 3 . 1 . 1 . . 1 . Misfires 2 | . . . . . . . . . . . . . . 1 . 1 . . . . . . Weapon Failures 5 | . . . . . . . . 1 . . . . . . . . . 4 . . . . Overload Shots 24 | . . . . . . . . 8 . 8 . 2 . . . . . 2 . 4 . . Effects 3 | . . . . . . . . . . . . 1 . . . . . 2 . . . . Energy Bleed 1 | . . . . . . . . . . . . . . . . . . 1 . . . . Short Circuit 2 | . . . . . . . . . . . . 1 . . . . . 1 . . . . Overflow Damage 1044 | . 4 . 29 . 13 . . 38 . 65 . 5 101 168 61 8 58 337 . 85 8 64 Projectiles 502 | . . . 29 . 6 . . 38 . 65 . . . 24 . . . 331 . 9 . . Explosions 471 | . 4 . . . 7 . . . . . . 5 101 144 61 8 58 . . 76 . 7 Melee 71 | . . . . . . . . . . . . . . . . . . 6 . . 8 57 Knockbacks 6 | . 1 . . . . . . . . . . . . . . . . 2 . 1 1 1 Impact 6 | . 1 . . . . . . . . . . . . . . . . 2 . 1 1 1 Kinetic . | . . . . . . . . . . . . . . . . . . . . . . . Secondary . | . . . . . . . . . . . . . . . . . . . . . . . Self-Inflicted Damage 464 | . 49 . . . 20 . . 27 . . . 23 . . . . 29 . . 108 85 123 Shots 8 | . 2 . . . 1 . . 1 . . . 1 . . . . 1 . . 2 . . Rammed 29 | . 1 1 1 2 2 . . . . . . . . . . . . 5 . 3 8 6 Targets Rammed 33 | . 1 1 1 2 2 . . . . . . . . . . 2 . 7 . 3 8 6 Kicked 2 | . . . . . . . . . . . . . . . . 2 . . . . . . Crushed 2 | . . . . . . . . . . . . . . . . . . 2 . . . . Highest Temperature 410 | . 376 180 180 54 254 198 144 262 . 218 . 160 . 190 . 118 42 323 . 237 219 410 Average Temperature 80 | . 117 67 50 20 26 68 58 77 . 77 . 72 . 89 . 41 20 103 . 140 110 96 Received Heat Transfer 1808 | . 192 . 78 . 198 99 15 134 . 5 . 267 97 96 . 45 90 192 6 151 26 117 Effects 4 | . 2 . . . . . . . . . . . . . . . . 1 . . . 1 Shutdowns 1 | . 1 . . . . . . . . . . . . . . . . . . . . . Energy Bleed 2 | . . . . . . . . . . . . . . . . . . 1 . . . 1 Damage (minor) 1 | . 1 . . . . . . . . . . . . . . . . . . . . . Siege Activations 1 | . . . . . . . . . . . . . . . . . . 1 . . . . Total Turns 12 | . . . . . . . . . . . . . . . . . . 12 . . . . Longest Duration 12 | . . . . . . . . . . . . . . . . . . 12 . . . . Martial Activations . | . . . . . . . . . . . . . . . . . . . . . . . Shielding Activations . | . . . . . . . . . . . . . . . . . . . . . . . Robots Disrupted . | . . . . . . . . . . . . . . . . . . . . . . . Combat Hostiles . | . . . . . . . . . . . . . . . . . . . . . . . Robots Corrupted 3 | . . . . . . . . . . . . . . 2 . . . . . . . 1 Combat Hostiles 1 | . . . . . . . . . . . . . . 1 . . . . . . . . Parts Fried 5 | . . . . . . . . . . . . . . . . . 1 2 . . . 2 Impact Corruptions 4 | . . . . . . . . . . . . . . . . . . 1 . . 1 2 Robots Melted 8 | . . . 2 . 1 . . 1 . . . . . 1 . . . 3 . . . . Combat Hostiles 6 | . . . 1 . . . . 1 . . . . . 1 . . . 3 . . . . Parts Melted 47 | . . 1 1 2 3 2 . 3 . . . 5 6 5 . 1 1 17 . . . . Heat Transferred 18087 | . 668 481 703 407 2236 1036 185 703 37 496 148 1407 1778 1739 100 703 74 4318 . 594 . 274 Parts Sabotaged . | . . . . . . . . . . . . . . . . . . . . . . . Parts Stolen . | . . . . . . . . . . . . . . . . . . . . . . . Parts Stripped . | . . . . . . . . . . . . . . . . . . . . . . . Power Chain Reactions 1 | . 1 . . . . . . . . . . . . . . . . . . . . . Alert | -11 -10 -10 -9 -9 -9 -8 -7 -7 -7 -7 -6 -6 -5 -5 -5 -5 -4 -3 -2 -2 -2 -1 ------- Run | Yrd Mat Min Mat Sto Gar Mat Fac Gar Fac Gar Fac Gar Fac Gar Fac Gar Fac Res Res DSF Gar Acc Maximum Alert Level 5 | . . . . . 5 3 2 2 1 2 1 2 2 4 3 3 2 2 1 2 3 2 Low Security (%) 28 | . 100 100 100 100 3 . 62 31 64 31 86 4 . . . . . 53 . 21 . . Level 1 18 | . . . . . 8 . 33 43 35 35 13 16 29 8 . . 12 36 100 9 . 4 Level 2 36 | . . . . . 33 . 3 24 . 33 . 78 70 70 53 11 87 10 . 69 80 95 Level 3 12 | . . . . . 28 100 . . . . . . . 15 46 88 . . . . 19 . Level 4 3 | . . . . . 18 . . . . . . . . 5 . . . . . . . . Level 5 . | . . . . . 6 . . . . . . . . . . . . . . . . . High Security . | . . . . . . . . . . . . . . . . . . . . . . . Max Security . | . . . . . . . . . . . . . . . . . . . . . . . Sterilizations 1 | . . . . . . . . . . . . . . . . . . . . 1 . . Peak Influence 1650 | . 116 120 97 176 1650 931 402 692 363 473 226 667 606 1216 809 1056 627 537 297 625 930 557 Initial 804 | . . 39 42 33 109 804 402 37 363 82 226 108 350 387 638 559 554 204 297 173 468 545 Average 446 | . 57 50 19 70 830 778 211 329 219 302 141 480 496 587 716 963 524 226 263 414 671 483 Influence Increases 10704 | . 250 161 216 246 1651 401 59 995 55 501 151 729 462 1059 181 527 344 911 4 552 592 657 Destroy 0b10 Robot/C 4645 | . 140 120 100 120 840 200 20 400 40 220 80 460 180 400 60 200 150 480 . 165 210 60 Destroy 0b10 Robot/NC 326 | . 30 10 25 20 25 35 5 5 . . . . 30 25 . 8 4 80 . 12 . 12 Destroy Leader 650 | . 32 20 54 34 30 46 10 30 10 30 20 20 60 20 10 20 32 100 . 24 40 8 Allied During Kill 487 | . . 11 27 26 93 55 . 75 5 45 6 32 . 53 . 16 29 . . 3 11 . Successful Hack 303 | . 7 . 10 30 24 6 24 40 . 14 30 . 31 28 . . 5 11 4 . 11 28 Select Force Hacks 30 | . . . . . . 30 . . . . . . . . . . . . . . . . Disable Machine 366 | . 15 . . 15 15 15 . . . 45 15 15 75 . 45 15 36 36 . . . 24 Anti-Garrison Action 1526 | . . . . . 550 . . 350 . 100 . 100 . 250 . 100 . . . . 76 . Destroy Structure 1534 | . 26 . . 1 59 14 . 50 . 2 . 57 86 238 66 138 88 180 . 276 148 105 Partial Spotted 48 | . . . . . . . . . . . . . . . . . . . . . 24 24 Lose Combat Pursuer 789 | . . . . . 15 . . 45 . 45 . 45 . 45 . 30 . 24 . 72 72 396 Influence Decreases 10404 | . 150 151 245 158 170 1166 891 356 629 186 429 217 575 397 598 270 1010 772 302 158 307 1267 Entered New Map 5003 | . . 61 68 48 60 846 483 16 329 36 207 47 317 167 578 240 502 186 232 58 157 365 Time Decay 2771 | . 140 90 177 110 . 230 238 . 130 . 222 . 238 . 20 . 238 526 70 . . 342 Search Patrol Dispatched 150 | . . . . . . . . . . . . . . . . . . . . . . 150 Lost Part 790 | . 10 . . . 30 10 . 40 . 40 . 70 10 90 . 10 30 40 . 60 50 300 Lost Ally 1240 | . . . . . 80 80 20 300 20 110 . 100 10 140 . 20 90 20 . 40 100 110 Purge Threat 450 | . . . . . . . 150 . 150 . . . . . . . 150 . . . . . Squads Dispatched 36 | . 1 . 1 1 . 5 1 . 1 . 2 . 3 . 1 . 4 7 . 2 . 7 Investigation 12 | . 1 . 1 . . 1 . . . . 1 . 1 . 1 . 2 2 . . . 2 Extermination 9 | . . . . . . . 1 . . . 1 . . . . . 1 3 . . . 3 Reinforcement 12 | . . . . . . 3 . . 1 . . . 2 . . . 1 2 . 2 . 1 Assault 2 | . . . . . . 1 . . . . . . . . . . . . . . . 1 Garrison 1 | . . . . 1 . . . . . . . . . . . . . . . . . . Intercept . | . . . . . . . . . . . . . . . . . . . . . . . Searches Triggered 1 | . . . . . . . . . . . . . . . . . . . . . . 1 Construction Impeded 1 | . . . . . . . . . . . . . 1 . . . . . . . . . Haulers Reinforced 1 | . . . . . . . . . . . . . . . . . . . . . . 1 Active Scanning Responses . | . . . . . . . . . . . . . . . . . . . . . . . Cargo Convoy Interrupts . | . . . . . . . . . . . . . . . . . . . . . . . Stealth | -11 -10 -10 -9 -9 -9 -8 -7 -7 -7 -7 -6 -6 -5 -5 -5 -5 -4 -3 -2 -2 -2 -1 --------- Run | Yrd Mat Min Mat Sto Gar Mat Fac Gar Fac Gar Fac Gar Fac Gar Fac Gar Fac Res Res DSF Gar Acc Distress Signals 5 | . 1 . . . . . . 1 . . . . 1 . . . . . . . . 2 Communications Jammed 106 | . . . . . . . . . . . . . . . 1 . . 39 1 . . 65 Distress Signals 105 | . . . . . . . . . . . . . . . . . . 39 1 . . 65 Times Spotted 388 | . 10 6 9 4 38 15 8 31 3 18 4 36 13 28 1 16 9 35 3 13 17 71 Peak Tracking Total 20 | . 3 2 2 3 7 5 3 6 1 3 2 5 3 4 1 6 3 5 3 6 12 20 Tactical Retreats 34 | . . . . . 1 . . 2 . 3 . 3 . 3 . 1 . 1 . 3 2 15 Traps | -11 -10 -10 -9 -9 -9 -8 -7 -7 -7 -7 -6 -6 -5 -5 -5 -5 -4 -3 -2 -2 -2 -1 ------- Run | Yrd Mat Min Mat Sto Gar Mat Fac Gar Fac Gar Fac Gar Fac Gar Fac Gar Fac Res Res DSF Gar Acc Traps Triggered 17 | . . . . . 2 . . 1 . . 3 3 1 1 . 1 . . 1 . 3 1 Indirectly . | . . . . . . . . . . . . . . . . . . . . . . . Trap Hack Attempts . | . . . . . . . . . . . . . . . . . . . . . . . Triggered . | . . . . . . . . . . . . . . . . . . . . . . . Disarmed . | . . . . . . . . . . . . . . . . . . . . . . . Reprogrammed . | . . . . . . . . . . . . . . . . . . . . . . . Reused . | . . . . . . . . . . . . . . . . . . . . . . . Traps Extracted . | . . . . . . . . . . . . . . . . . . . . . . . Installed . | . . . . . . . . . . . . . . . . . . . . . . . Triggered . | . . . . . . . . . . . . . . . . . . . . . . . Machines | -11 -10 -10 -9 -9 -9 -8 -7 -7 -7 -7 -6 -6 -5 -5 -5 -5 -4 -3 -2 -2 -2 -1 ---------- Run | Yrd Mat Min Mat Sto Gar Mat Fac Gar Fac Gar Fac Gar Fac Gar Fac Gar Fac Res Res DSF Gar Acc Machines Disabled 48 | . 2 . . 1 5 1 . 5 . 5 1 3 5 5 3 2 3 3 . . 2 2 Max in Single Turn 4 | . 1 . . 1 1 . . 2 . 1 1 1 4 2 3 1 1 1 . . 1 1 Garrison Access 2 | . . . . . . . . . . . . . . . . . . . . . . 2 Garrison Relay 15 | . . . . . 4 . . 3 . 2 . 1 . 2 . 1 . . . . 2 . Phase Generator 2 | . . . . . . . . 1 . . . . . 1 . . . . . . . . Energy Cycler 1 | . . . . . . . . . . . . . . . . . . . . . . 1 Machines Repaired . | . . . . . . . . . . . . . . . . . . . . . . . Machines Dismantled . | . . . . . . . . . . . . . . . . . . . . . . . Machines Sabotaged . | . . . . . . . . . . . . . . . . . . . . . . . Overloaded Fab Kills . | . . . . . . . . . . . . . . . . . . . . . . . Hacking | -11 -10 -10 -9 -9 -9 -8 -7 -7 -7 -7 -6 -6 -5 -5 -5 -5 -4 -3 -2 -2 -2 -1 --------- Run | Yrd Mat Min Mat Sto Gar Mat Fac Gar Fac Gar Fac Gar Fac Gar Fac Gar Fac Res Res DSF Gar Acc Machines Accessed 53 | . 3 . 2 4 3 2 2 3 1 1 5 1 4 2 2 1 3 3 1 . 1 9 Terminals 35 | . 2 . 2 3 3 1 1 3 . 1 3 1 2 2 . 1 1 2 1 . 1 5 Fabricators 1 | . . . . . . . . . . . . . . . . . 1 . . . . . Repair Stations 2 | . . . . . . . . . . . . . . . . . 1 . . . . 1 Recycling Units 6 | . 1 . . . . . . . . . 1 . 1 . 1 . . 1 . . . 1 Scanalyzers 1 | . . . . . . 1 . . . . . . . . . . . . . . . . Garrison Access 8 | . . . . 1 . . 1 . 1 . 1 . 1 . 1 . . . . . . 2 Total Hacks 162 | . 12 . 9 11 10 17 6 12 1 3 22 4 8 7 4 2 8 7 1 . 2 16 Successful 76 | . 5 . 6 6 2 11 3 3 1 1 11 1 6 2 2 1 5 3 1 . 1 5 Failed 86 | . 7 . 3 5 8 6 3 9 . 2 11 3 2 5 2 1 3 4 . . 1 11 Catastrophic 22 | . 1 . . 2 1 . 1 3 . . 1 1 1 1 . 1 2 3 . . . 4 Database Lockouts . | . . . . . . . . . . . . . . . . . . . . . . . Manual 51 | . . . 3 1 1 8 2 6 . 3 8 2 3 3 . 2 5 . . . . 4 Terminals 121 | . 9 . 9 10 10 9 3 12 . 3 16 4 6 7 . 2 2 6 1 . 2 10 Fabricators 4 | . . . . . . . . . . . . . . . . . 4 . . . . . Repair Stations 4 | . . . . . . . . . . . . . . . . . 2 . . . . 2 Recycling Units 15 | . 3 . . . . . . . . . 5 . 1 . 3 . . 1 . . . 2 Scanalyzers 8 | . . . . . . 8 . . . . . . . . . . . . . . . . Garrison Access 10 | . . . . 1 . . 3 . 1 . 1 . 1 . 1 . . . . . . 2 Terminal Hacks 40 | . 3 . 5 4 2 4 2 3 . 1 4 1 2 2 . 1 1 2 1 . 1 1 Record 1 | . . . . . . . . . . . . . . . . . . . . . . 1 Part Schematic 1 | . . . . 1 . . . . . . . . . . . . . . . . . . Robot Schematic 1 | . . . . . . . 1 . . . . . . . . . . . . . . . Robot Analysis 5 | . 2 . . . . 3 . . . . . . . . . . . . . . . . Prototype ID Bank 4 | . . . 1 1 . 1 . . . . . . 1 . . . . . . . . . Open Door 2 | . . . . 1 . . . 1 . . . . . . . . . . . . . . Open DSF 1 | . . . . . . . . . . . . . . . . . . . 1 . . . Level Access Points 1 | . . . . . . . . . . . 1 . . . . . . . . . . . Branch Access Points 1 | . 1 . . . . . . . . . . . . . . . . . . . . . Emergency Access Points 2 | . . . . . . . . . . . . 1 . . . . . . . . 1 . Terminal Index 1 | . . . . . . . . . . . 1 . . . . . . . . . . . Unreport Threat 2 | . . . . . . . 1 . . . . . . . . . 1 . . . . . Locate Traps 3 | . . . 2 . . . . . . . . . . . . . . 1 . . . . Maintenance Status 1 | . . . . . . . . . . . 1 . . . . . . . . . . . Patrol Status 1 | . . . 1 . . . . . . . . . . . . . . . . . . . Registered Components 2 | . . . . 1 . . . . . . 1 . . . . . . . . . . . Registered Prototypes 1 | . . . . . . . . . . . . . 1 . . . . . . . . . Zone Layout 2 | . . . 1 . . . . . . . . . . . . . . 1 . . . . Garrison Registry 5 | . . . . . 1 . . 1 . 1 . . . 1 . 1 . . . . . . Patrol Navigation 2 | . . . . . 1 . . . . . . . . 1 . . . . . . . . Security Stations 1 | . . . . . . . . 1 . . . . . . . . . . . . . . Fabricator Hacks 2 | . . . . . . . . . . . . . . . . . 2 . . . . . Load Schematic 1 | . . . . . . . . . . . . . . . . . 1 . . . . . Build 1 | . . . . . . . . . . . . . . . . . 1 . . . . . Repair Station Hacks . | . . . . . . . . . . . . . . . . . . . . . . . Recycling Unit Hacks 8 | . 2 . . . . . . . . . 3 . 1 . 1 . . 1 . . . . Process 1 | . . . . . . . . . . . 1 . . . . . . . . . . . Report Inventory 5 | . 1 . . . . . . . . . 1 . 1 . 1 . . 1 . . . . Retrieve Matter 1 | . . . . . . . . . . . 1 . . . . . . . . . . . Retrieve Components 1 | . 1 . . . . . . . . . . . . . . . . . . . . . Scanalyzer 6 | . . . . . . 6 . . . . . . . . . . . . . . . . Insert Component 3 | . . . . . . 3 . . . . . . . . . . . . . . . . Analyze 3 | . . . . . . 3 . . . . . . . . . . . . . . . . Garrison Access Hacks 8 | . . . . 1 . . 1 . 1 . 1 . 1 . 1 . . . . . . 2 Unlock Access 6 | . . . . 1 . . 1 . 1 . 1 . 1 . 1 . . . . . . . Seal Access 2 | . . . . . . . . . . . . . . . . . . . . . . 2 Unauthorized Hacks 12 | . . . 1 1 . 1 . . . . 3 . 2 . . . 2 . . . . 2 Terminals 8 | . . . 1 1 . . . . . . 3 . 2 . . . . . . . . 1 Botnet 7 | . . . 1 1 . . . . . . 3 . 1 . . . . . . . . 1 Operators 1 | . . . . . . . . . . . . . 1 . . . . . . . . . Fabricators 1 | . . . . . . . . . . . . . . . . . 1 . . . . . Prioritize 1 | . . . . . . . . . . . . . . . . . 1 . . . . . Repair Stations 2 | . . . . . . . . . . . . . . . . . 1 . . . . 1 Patch 2 | . . . . . . . . . . . . . . . . . 1 . . . . 1 Recycling Units . | . . . . . . . . . . . . . . . . . . . . . . . Scanalyzers 1 | . . . . . . 1 . . . . . . . . . . . . . . . . Extract 1 | . . . . . . 1 . . . . . . . . . . . . . . . . Garrison Access . | . . . . . . . . . . . . . . . . . . . . . . . Data Cores Recovered 2 | . . . 1 . . . . . . . . . . . . . 1 . . . . . Used . | . . . . . . . . . . . . . . . . . . . . . . . Hacking Detections 42 | . 3 . 2 3 3 2 2 2 . 1 4 1 3 2 1 1 3 2 . . 1 6 Full Trace Events 21 | . 2 . 2 2 3 . . 1 . . 1 1 1 2 1 1 1 2 . . . 1 Feedback Events . | . . . . . . . . . . . . . . . . . . . . . . . Feedback Blocked . | . . . . . . . . . . . . . . . . . . . . . . . Robot Schematics Acquired 1 | . . . . . . . 1 . . . . . . . . . . . . . . . Robots Built 1 | . . . . . . . . . . . . . . . . . 1 . . . . . Authchips . | . . . . . . . . . . . . . . . . . . . . . . . Time 58 | . . . . . . . . . . . . . . . . . 58 . . . . . Total Robot Build Rating 3 | . . . . . . . . . . . . . . . . . 3 . . . . . Part Schematics Acquired 8 | . . . . 1 . 7 . . . . . . . . . . . . . . . . Parts Built . | . . . . . . . . . . . . . . . . . . . . . . . Authchips . | . . . . . . . . . . . . . . . . . . . . . . . Time . | . . . . . . . . . . . . . . . . . . . . . . . Total Part Build Rating . | . . . . . . . . . . . . . . . . . . . . . . . Parts Repaired . | . . . . . . . . . . . . . . . . . . . . . . . Time . | . . . . . . . . . . . . . . . . . . . . . . . Parts Recycled . | . . . . . . . . . . . . . . . . . . . . . . . Recycled Matter 24 | . . . . . . . . . . . 24 . . . . . . . . . . . Retrieved Matter 24 | . . . . . . . . . . . 24 . . . . . . . . . . . Retrieved Components 1 | . 1 . . . . . . . . . . . . . . . . . . . . . Parts Scanalyzed 3 | . . . . . . 3 . . . . . . . . . . . . . . . . Part Schematics Acquired 3 | . . . . . . 3 . . . . . . . . . . . . . . . . Parts Damaged . | . . . . . . . . . . . . . . . . . . . . . . . Bothacking | -11 -10 -10 -9 -9 -9 -8 -7 -7 -7 -7 -6 -6 -5 -5 -5 -5 -4 -3 -2 -2 -2 -1 ------------ Run | Yrd Mat Min Mat Sto Gar Mat Fac Gar Fac Gar Fac Gar Fac Gar Fac Gar Fac Res Res DSF Gar Acc Used RIF Installer 8 | . . . . . 2 . . 1 . 1 . 1 . 1 . 1 . . . . 1 . Command Fork 1 | . . . . . . . . . . . . . . 1 . . . . . . . . Threat Obfuscator 1 | . . . . . . . . . . . . . . . . 1 . . . . . . Signal Jammer 1 | . . . . . . . . . . 1 . . . . . . . . . . . . Robot Detection 1 | . . . . . . . . 1 . . . . . . . . . . . . . . Patrol Navigation 1 | . . . . . . . . . . . . 1 . . . . . . . . . . Structural Interface 1 | . . . . . 1 . . . . . . . . . . . . . . . . . Autoassimilate 1 | . . . . . . . . . . . . . . . . . . . . . 1 . Robots Hacked 86 | . . . . . . 2 9 16 3 6 2 10 . 8 1 6 4 2 . 2 6 9 Non-combat 15 | . . . . . . 1 6 . 2 . . 1 . . . . 1 2 . . . 2 Combat 71 | . . . . . . 1 3 16 1 6 2 9 . 8 1 6 3 . . 2 6 7 Autoassimilated 4 | . . . . . . . . . . . . . . . . . . . . . 1 3 Robot Hacks Applied 90 | . . . . . . 2 12 16 4 6 2 11 . 9 1 6 5 2 . 2 6 6 parse_system 4 | . . . . . . . . 2 . . . . . 1 . . 1 . . . . . generate_echo 2 | . . . . . . . 1 . 1 . . . . . . . . . . . . . start_evac 1 | . . . . . . . . . . . . . . . . . . 1 . . . . find_chute 1 | . . . . . . . 1 . . . . . . . . . . . . . . . hold_bot 1 | . . . . . . . 1 . . . . . . . . . . . . . . . start_disposal 1 | . . . . . . . 1 . . . . . . . . . . . . . . . map_walls 2 | . . . . . . . 1 . . . . . . . . . . . . . . 1 drop_inventory 3 | . . . . . . 1 1 . . . . . . . . . . . . . . 1 ignore_parts 1 | . . . . . . . 1 . . . . . . . . . . . . . . . purge_threat 1 | . . . . . . . . . 1 . . . . . . . . . . . . . mark_security 1 | . . . . . . . 1 . . . . . . . . . . . . . . . scatter_targeting 2 | . . . . . . . . 1 . . . . . . . . . . . . . 1 spike_heat 1 | . . . . . . . . . . . . . . 1 . . . . . . . . overload_power 1 | . . . . . . . 1 . . . . . . . . . . . . . . . amplify_resonance 11 | . . . . . . . . 3 . 2 . 2 . . . 1 . . . . . 3 wipe_record 3 | . . . . . . . . . . . 1 . . 2 . . . . . . . . reboot_system 6 | . . . . . . . . . . 1 . 2 . 1 . 1 . . . . 1 . go_dormant 2 | . . . . . . . 1 . . 1 . . . . . . . . . . . . overwrite_iff 7 | . . . . . . . 1 3 . . . . . . . . . . . . 3 . streamctrl_high 2 | . . . . . . . . 1 . . . 1 . . . . . . . . . . formatsys_low 2 | . . . . . . . . . 1 . . . . . . . 1 . . . . . formatsys_high 35 | . . . . . . 1 1 6 1 2 1 6 . 4 1 4 3 1 . 2 2 . Relay Couplers Released 67 | . . . . . 19 . . 17 . 7 . 4 1 8 . 3 . . . . 8 . Machine Destruction 59 | . . . . . 15 . . 14 . 7 . 4 . 8 . 3 . . . . 8 . Programmers 8 | . . . . . 4 . . 3 . . . . 1 . . . . . . . . . Attached 47 | . . . . . 1 2 2 11 . 4 1 4 . 6 1 1 5 . . . 6 3 Fabnet Peak Effective % . | . . . . . . . . . . . . . . . . . . . . . . . Robots Rewired 26 | . . . . . 6 . . 9 . 5 . . . 6 . . . . . . . . Allies Hacked 4 | . . . . . 3 . . . . . . . . 1 . . . . . . . . Hacks Repelled . | . . . . . . . . . . . . . . . . . . . . . . . Allies | -11 -10 -10 -9 -9 -9 -8 -7 -7 -7 -7 -6 -6 -5 -5 -5 -5 -4 -3 -2 -2 -2 -1 -------- Run | Yrd Mat Min Mat Sto Gar Mat Fac Gar Fac Gar Fac Gar Fac Gar Fac Gar Fac Res Res DSF Gar Acc Total Allies 81 | . . 3 . . 6 1 2 19 2 7 1 7 . 10 1 4 5 1 . 2 7 3 Largest Group 8 | . . 3 3 3 4 5 1 8 3 7 1 4 1 8 1 4 4 2 . 1 3 3 Highest-Rated Group 253 | . . 40 40 40 84 99 16 224 86 176 41 172 93 191 41 116 253 52 . 89 161 155 Highest-Rated Ally 142 | . . 16 16 16 34 21 16 32 32 32 41 105 93 49 41 41 142 26 . 89 69 58 Total Orders 8 | . . . . . . . . . . . . 3 . . . 2 2 . . . . 1 STAY 2 | . . . . . . . . . . . . 1 . . . 1 . . . . . . FOLLOW 2 | . . . . . . . . . . . . 1 . . . 1 . . . . . . AID 2 | . . . . . . . . . . . . . . . . . 2 . . . . . DROP 1 | . . . . . . . . . . . . 1 . . . . . . . . . . EXPLORE 1 | . . . . . . . . . . . . . . . . . . . . . . 1 Ally Attacks 420 | . . . 12 27 51 47 4 66 4 28 3 34 . 40 . 18 31 . . 13 24 18 Total Damage 11046 | . . . 97 302 1346 964 32 1963 86 900 103 1851 . 689 . 391 887 . . 332 555 548 Kills 87 | . . . 2 3 17 7 . 13 1 7 2 16 . 3 . 6 5 . . 1 3 1 Allies Corrupted 3 | . . . . . . . . . . 1 . . . 1 . . . . . . . 1 Allies Melted 1 | . . . . . . . . . . . . . . . . . . . . . 1 . Intel | -11 -10 -10 -9 -9 -9 -8 -7 -7 -7 -7 -6 -6 -5 -5 -5 -5 -4 -3 -2 -2 -2 -1 ------- Run | Yrd Mat Min Mat Sto Gar Mat Fac Gar Fac Gar Fac Gar Fac Gar Fac Gar Fac Res Res DSF Gar Acc Active Infowar (turns) 3238 | . . . . . . . . . . . . . . . . . 158 1469 150 319 367 775 Optics 3238 | . . . . . . . . . . . . . . . . . 158 1469 150 319 367 775 Sensors 80 | . . . . . . . . . . . . . . . . . . . . . . 80 Seismic 1 | . . . . . . . . . . . . . . . . . . . . . . 1 T.N.C. 171 | . . . . . . . . . . . . . . . . . . . . 95 76 . Cloaking 293 | . . . . . . . . . . . . . . . . . . . . . . 293 Robot Analysis Total 5 | . 2 . . . . 3 . . . . . . . . . . . . . . . . Derelict Logs Recovered . | . . . . . . . . . . . . . . . . . . . . . . . Drone Launches 2 | . . . . . . . . . . . . . . . . . . . . . . 2 Drone Recoveries 1 | . . . . . . . . . . . . . . . . . . . . . . 1 Exploration | -11 -10 -10 -9 -9 -9 -8 -7 -7 -7 -7 -6 -6 -5 -5 -5 -5 -4 -3 -2 -2 -2 -1 ------------- Run | Yrd Mat Min Mat Sto Gar Mat Fac Gar Fac Gar Fac Gar Fac Gar Fac Gar Fac Res Res DSF Gar Acc Turns Passed 14264 | . 421 192 603 223 2071 491 509 1332 275 1077 460 948 508 1023 41 492 515 1469 150 319 367 778 Spaces Moved 8400 | 1 226 96 342 109 809 198 260 590 124 416 373 585 252 559 27 276 320 710 91 261 392 1383 Core 42 | . . . . . . . . . . . . . . . . . . . . . . 42 Treads 2384 | . 105 96 342 109 809 4 . . . . . . . . . . 59 710 91 59 . . Legs 2486 | 1 121 . . . . 194 260 212 . . . 323 252 559 27 276 261 . . . . . Wheels . | . . . . . . . . . . . . . . . . . . . . . . . Hover 1935 | . . . . . . . . . . . . . . . . . . . . 202 392 1341 Flight 1553 | . . . . . . . . 378 124 416 373 262 . . . . . . . . . . Fastest Speed 45 | 120 120 160 160 160 160 130 130 169 170 170 99 99 116 116 116 116 116 145 161 45 45 45 Average Speed 132 | 120 138 160 160 160 214 200 161 188 195 227 99 118 142 127 116 116 122 150 161 73 45 45 Slowest Speed 560 | 120 160 160 160 160 240 340 200 239 239 240 99 180 185 185 116 116 155 161 161 560 45 157 Overloaded Moves . | . . . . . . . . . . . . . . . . . . . . . . . Propulsion Burnouts . | . . . . . . . . . . . . . . . . . . . . . . . Robots Hopped . | . . . . . . . . . . . . . . . . . . . . . . . Potential Cave-ins . | . . . . . . . . . . . . . . . . . . . . . . . Cave-ins Triggered . | . . . . . . . . . . . . . . . . . . . . . . . Exploration Rate (%) 33 | 2 36 28 20 20 76 20 5 77 6 51 9 57 12 60 2 48 10 18 4 98 52 49 Regions Visited 22 Branch Regions 2 Pre-discovered Areas 1 | . . . . 1 . . . . . . . . . . . . . . . . . . Known Exits Taken 8 | . 1 . . 1 . . 1 . 1 . 1 . 1 . 1 . . . 1 . . . Unknown Exits Taken 6 | 1 . 1 1 . . 1 . . . . . . . . . . 1 1 . . . . Scrap Searched . | . . . . . . . . . . . . . . . . . . . . . . . Spaces Dug 30 | . . . . . . . . 3 . . . . . . . . . 27 . . . . Terrain Destroyed 921 | . 26 . . . 6 10 . 81 . 2 . 40 40 160 35 92 54 108 . 142 92 33 Melee 1 | . . . . . . . . 1 . . . . . . . . . . . . . . Projectile 119 | . . . . . 1 . . 3 . 2 . 1 2 . . . 1 103 . 4 . 2 AOE 801 | . 26 . . . 5 10 . 77 . . . 39 38 160 35 92 53 5 . 138 92 31 Terrain Rammed . | . . . . . . . . . . . . . . . . . . . . . . . Walls Destroyed . | . . . . . . . . . . . . . . . . . . . . . . . Machines Disabled . | . . . . . . . . . . . . . . . . . . . . . . . Actions | -11 -10 -10 -9 -9 -9 -8 -7 -7 -7 -7 -6 -6 -5 -5 -5 -5 -4 -3 -2 -2 -2 -1 --------- Run | Yrd Mat Min Mat Sto Gar Mat Fac Gar Fac Gar Fac Gar Fac Gar Fac Gar Fac Res Res DSF Gar Acc Total 10616 | . 291 115 374 137 1028 249 324 768 153 522 457 792 328 789 35 414 418 930 94 356 521 1521 Wait 447 | . 1 7 . 3 17 . 19 15 15 14 21 70 24 46 2 71 25 48 . 11 12 26 Move 8380 | . 225 95 341 109 808 197 259 589 123 415 373 584 252 558 26 274 319 709 90 260 391 1383 Hop . | . . . . . . . . . . . . . . . . . . . . . . . Pick Up 190 | . 14 1 3 3 34 5 5 15 1 8 4 16 3 19 . 4 6 16 . 11 10 12 Fast Attach 95 | . 2 . 3 . 3 4 . 9 . 3 2 8 1 9 1 4 7 9 2 10 8 10 Attach 103 | . 3 . . . 2 1 4 14 1 7 3 7 2 9 1 5 4 7 1 8 7 17 Detach 58 | . 1 . . . . 1 1 12 1 2 4 4 . 6 1 2 1 3 1 5 2 11 Swap 201 | . 5 . 5 4 21 14 4 15 3 4 2 21 9 23 1 5 19 24 . 5 6 11 Drop 214 | . 14 1 8 5 34 6 2 18 1 3 2 19 3 15 1 7 15 22 . 15 9 14 Fire 689 | . 25 10 13 11 71 20 30 71 8 31 9 49 34 56 2 40 21 85 . 26 46 31 Melee 10 | . . . . . . . . 1 . . . . . 9 . . . . . . . . Ram 14 | . . . . . . . . . . . . . . . . . . . . . 8 6 Kick 2 | . . . . . . . . . . . . . . . . 2 . . . . . . Crush 17 | . 1 1 1 2 2 . . . . . . . . . . . . 7 . 3 . . Escape Stasis 77 | . . . . . 2 . . 5 . . 36 14 . . . . . . . . 20 . Rewire 119 | . . . . . 34 1 . 4 . 35 1 . . 39 . . 1 . . 2 2 . Trap . | . . . . . . . . . . . . . . . . . . . . . . . Miscellaneous . | . . . . . . . . . . . . . . . . . . . . . . . Route ------- -11/Scrapyard -10/Materials (discovered 2 exits: *Mat / *Min) -10/Mines -9/Materials -9/Storage -9/Garrison (discovered 3 exits: *Mat x3) -8/Materials -7/Factory -7/Garrison (discovered 3 exits: *Fac x3) -7/Factory -7/Garrison (discovered 3 exits: *Fac x3) -6/Factory (discovered 6 exits: Fac x4 / *Low / Gar) -6/Garrison -5/Factory -5/Garrison (discovered 3 exits: *Fac x3) -5/Factory -5/Garrison (discovered 3 exits: *Fac x3) -4/Factory -3/Research -2/Research -2/DSF -2/Garrison -1/Access History --------- Turn | Location | Event 1 | -11/Scrapyard | Discovered new exit (range 0) 1 | -11/Scrapyard | Entered Materials 165 | -10/Materials | Discovered new exit (range 6) 260 | -10/Materials | Identified exit to Mines 304 | -10/Materials | Build established: Mutant 422 | -10/Materials | Entered Mines 548 | -10/Mines | Discovered new exit (range 13) 561 | -10/Mines | Assisted by bots powering up and referring to "LRC-V3" 614 | -10/Mines | Entered Materials 614 | -9/Materials | Accompanied by 3 allies 614 | -9/Materials | Evolved 2 slots: Utility x2 1166 | -9/Materials | Discovered new exit (range 15) 1217 | -9/Materials | Entered Storage 1217 | -9/Storage | Accompanied by 3 allies 1349 | -9/Storage | Learned location of Armory (-3) 1391 | -9/Storage | Garrison activated, responded to threat 1439 | -9/Storage | Identified exit to Garrison 1440 | -9/Storage | Entered Garrison 1440 | -9/Garrison | Accompanied by 3 allies 1487 | -9/Garrison | Build established: Scavenger-Mutant 1506 | -9/Garrison | Triggered checkpoint 1508 | -9/Garrison | Triggered checkpoint 1542 | -9/Garrison | Triggered checkpoint 1642 | -9/Garrison | Discovered new exit (range 12) 1657 | -9/Garrison | Installed Relay Interface Framework 1694 | -9/Garrison | Triggered checkpoint 1706 | -9/Garrison | Garrison Relay disabled 2348 | -9/Garrison | Discovered new exit (range 11) 2381 | -9/Garrison | Discovered new exit (range 23) 2381 | -9/Garrison | Discovered new exit (range 31) 2381 | -9/Garrison | Discovered new exit (range 70) 2382 | -9/Garrison | Triggered checkpoint 2420 | -9/Garrison | Garrison Relay disabled 2598 | -9/Garrison | Triggered checkpoint 2922 | -9/Garrison | Expanded RIF knowledge: Structural Interface 3050 | -9/Garrison | Build established: Bothacker-Mutant 3061 | -9/Garrison | Garrison Relay disabled 3239 | -9/Garrison | Garrison Relay disabled 3511 | -9/Garrison | Entered Materials 3511 | -8/Materials | Accompanied by 4 allies 3511 | -8/Materials | Evolved 2 slots: Propulsion x1, Utility x1 3911 | -8/Materials | First assault squad dispatched 3967 | -8/Materials | Discovered new exit (range 8) 3970 | -8/Materials | Lost 3 allies 4002 | -8/Materials | Entered Factory 4002 | -7/Factory | Evolved 2 slots: Utility x2 4024 | -7/Factory | Identified exit to Garrison 4511 | -7/Factory | Entered Garrison 4511 | -7/Garrison | Accompanied by 1 ally 4559 | -7/Garrison | Discovered new exit (range 41) 4559 | -7/Garrison | Discovered new exit (range 44) 4559 | -7/Garrison | Discovered new exit (range 66) 4623 | -7/Garrison | Triggered checkpoint 4651 | -7/Garrison | Garrison Relay disabled 4877 | -7/Garrison | Garrison Relay disabled 4928 | -7/Garrison | P-70 Sage assimilated allied Guardian 4b 4983 | -7/Garrison | Triggered checkpoint 4997 | -7/Garrison | Triggered checkpoint 5007 | -7/Garrison | Triggered checkpoint 5011 | -7/Garrison | Triggered checkpoint 5049 | -7/Garrison | Lost 4 allies 5167 | -7/Garrison | Expanded RIF knowledge: Robot Detection 5471 | -7/Garrison | Triggered checkpoint 5475 | -7/Garrison | Triggered checkpoint 5511 | -7/Garrison | Garrison Relay disabled 5560 | -7/Garrison | Lost 6 allies 5655 | -7/Garrison | Learned Factory security intel 5802 | -7/Garrison | Phase Generator disabled 5843 | -7/Garrison | Entered Factory 5843 | -7/Factory | Accompanied by 2 allies 6101 | -7/Factory | Identified exit to Garrison 6118 | -7/Factory | Entered Garrison 6118 | -7/Garrison | Accompanied by 3 allies 6129 | -7/Garrison | Triggered checkpoint 6131 | -7/Garrison | Core integrity fell below 50% 6175 | -7/Garrison | H-XX Assembler disabled 6460 | -7/Garrison | Garrison Relay disabled 6514 | -7/Garrison | Triggered checkpoint 6568 | -7/Garrison | Discovered new exit (range 57) 6568 | -7/Garrison | Discovered new exit (range 35) 6568 | -7/Garrison | Discovered new exit (range 59) 6585 | -7/Garrison | P-60 Hacker assimilated allied Fighter 4a 6618 | -7/Garrison | Lost 3 allies 6708 | -7/Garrison | Garrison Relay disabled 6846 | -7/Garrison | Triggered checkpoint 6920 | -7/Garrison | Triggered checkpoint 7049 | -7/Garrison | Expanded RIF knowledge: Signal Jamming 7195 | -7/Garrison | Entered Factory 7195 | -6/Factory | Evolved 2 slots: Propulsion x2 7331 | -6/Factory | Build established: Botlord-Mutant 7385 | -6/Factory | Discovered new exit (range 6) 7409 | -6/Factory | Identified exit to Lower Caves 7569 | -6/Factory | Identified exit to Factory 7654 | -6/Factory | Identified exit to Garrison 7655 | -6/Factory | Entered Garrison 7655 | -6/Garrison | Accompanied by 1 ally 7666 | -6/Garrison | Expanded RIF knowledge: Patrol Navigation 7723 | -6/Garrison | Triggered checkpoint 7723 | -6/Garrison | Spotted B-75 Beast 7752 | -6/Garrison | Hijacked Beast 5a control node with streamctrl_high 7799 | -6/Garrison | Triggered checkpoint 7829 | -6/Garrison | Triggered checkpoint 7855 | -6/Garrison | Destroyed Beast 5a 7881 | -6/Garrison | Lost 3 allies 7909 | -6/Garrison | Triggered checkpoint 8133 | -6/Garrison | Lost 4 parts (2n2u) 8195 | -6/Garrison | Discovered exit to Factory (range 11) 8251 | -6/Garrison | Found Relay Coupler [Proto] 8256 | -6/Garrison | Found Relay Coupler [Proto] 8258 | -6/Garrison | Found Relay Coupler [Proto] 8359 | -6/Garrison | Triggered checkpoint 8394 | -6/Garrison | Garrison Relay disabled 8551 | -6/Garrison | Build established: Scavenger-Mutant 8574 | -6/Garrison | Found Relay Coupler [Proto] 8603 | -6/Garrison | Entered Factory 8603 | -5/Factory | Accompanied by 1 ally 8603 | -5/Factory | Evolved 2 slots: Power x1, Propulsion x1 9000 | -5/Factory | Build established: Botlord-Mutant 9111 | -5/Factory | Identified exit to Garrison 9111 | -5/Factory | Entered Garrison 9418 | -5/Garrison | Lost 5 parts (4u1w) 9619 | -5/Garrison | Triggered checkpoint 9641 | -5/Garrison | Triggered checkpoint 9689 | -5/Garrison | Lost 8 allies 9706 | -5/Garrison | Lost 4 parts (1p2u1w) 9707 | -5/Garrison | Triggered checkpoint 9763 | -5/Garrison | Expanded RIF knowledge: Command Fork 9763 | -5/Garrison | Garrison Relay disabled 9810 | -5/Garrison | Discovered new exit (range 95) 9810 | -5/Garrison | Discovered new exit (range 70) 9810 | -5/Garrison | Discovered new exit (range 31) 9953 | -5/Garrison | Triggered checkpoint 9987 | -5/Garrison | Triggered checkpoint 10077 | -5/Garrison | Phase Generator disabled 10134 | -5/Garrison | Entered Factory 10174 | -5/Factory | Identified exit to Garrison 10175 | -5/Factory | Entered Garrison 10175 | -5/Garrison | Accompanied by 1 ally 10203 | -5/Garrison | Triggered checkpoint 10231 | -5/Garrison | Discovered new exit (range 65) 10231 | -5/Garrison | Discovered new exit (range 75) 10231 | -5/Garrison | Discovered new exit (range 59) 10253 | -5/Garrison | Garrison Relay disabled 10330 | -5/Garrison | Found Relay Coupler [Proto] 10334 | -5/Garrison | Found Relay Coupler [Proto] 10487 | -5/Garrison | Triggered checkpoint 10509 | -5/Garrison | Triggered checkpoint 10529 | -5/Garrison | Triggered checkpoint 10594 | -5/Garrison | Expanded RIF knowledge: Threat Obfuscation 10667 | -5/Garrison | Entered Factory 10667 | -4/Factory | Accompanied by 4 allies 10667 | -4/Factory | Evolved 2 slots: Utility x2 10766 | -4/Factory | Lost 3 allies 11012 | -4/Factory | Lost 3 allies 11144 | -4/Factory | Fabricated O-24 Administrator (x1) 11168 | -4/Factory | Discovered new exit (range 5) 11182 | -4/Factory | Entered Research 11182 | -3/Research | Accompanied by 1 ally 11182 | -3/Research | Evolved 2 slots: Utility x1, Weapon x1 11479 | -3/Research | Build established: Botlord-Tank 12449 | -3/Research | System corruption reached 10% 12553 | -3/Research | Discovered new exit (range 13) 12651 | -3/Research | Entered another Research area 12651 | -2/Research | Evolved 2 slots: Utility x2 12801 | -2/Research | Identified exit to DSF 12801 | -2/Research | Entered DSF 12842 | -2/DSF | Additional patrols routed to DSF 12955 | -2/DSF | Lost 4 parts (1n1u2w) 13017 | -2/DSF | Discovered new exit (range 15) 13050 | -2/DSF | Sterilization system engaged 13070 | -2/DSF | Ambient heat levels rising (+10) 13085 | -2/DSF | Ambient heat levels rising (+10) 13100 | -2/DSF | Ambient heat levels rising (+10) 13115 | -2/DSF | Ambient heat levels rising (+10) 13120 | -2/DSF | Entered Garrison 13133 | -2/Garrison | Expanded RIF knowledge: Autoassimilate 13185 | -2/Garrison | Garrison Relay disabled 13296 | -2/Garrison | Triggered checkpoint 13387 | -2/Garrison | Lost 3 parts (1p1u1w) 13389 | -2/Garrison | Spotted B-90 Cyclops 13399 | -2/Garrison | Triggered checkpoint 13415 | -2/Garrison | Rescued a captive Derelict 13415 | -2/Garrison | Rescued a captive Derelict 13443 | -2/Garrison | Discovered new exit (range 13) 13451 | -2/Garrison | Lost 3 allies 13462 | -2/Garrison | Garrison Relay disabled 13470 | -2/Garrison | Triggered checkpoint 13487 | -2/Garrison | Entered Access 13487 | -1/Access | Accompanied by 2 allies 13487 | -1/Access | Evolved 2 slots: Utility x2 13674 | -1/Access | Spotted B-99 Colossus 13737 | -1/Access | First assault squad dispatched 13748 | -1/Access | Spotted B-99 Colossus 13924 | -1/Access | Build established: Botlord-Mutant 14127 | -1/Access | Energy Cycler disabled 14209 | -1/Access | Found Prototype Processor 14209 | -1/Access | Identified Spectral Analyzer 14215 | -1/Access | Spotted B-99 Colossus 14226 | -1/Access | Core integrity fell below 50% 14237 | -1/Access | Search patrols dispatched 14258 | -1/Access | Lost 20 parts (4p6n10u) 14263 | -1/Access | Core integrity fell below 20% 14265 | -1/Access | Self-destructed Last Messages --------------- 14227_ Slug penetrates Wall. 14227_ Slug penetrates Garrison Access. 14227_ Slug penetrates Wall. 14234_ P-80 Master repels hacking attempt. 14237_ ALERT: Heightened foreign activity detected, multiple search patrols dispatched. 14237_ P-80 Master repels hacking attempt. 14250_ System corrupted: Component data lost. 14250_ P-80 Master repels hacking attempt. 14255_ W-44 Eye sends out distress signal. 14256_ K-01 Serf cleans the Longscan Aggregator. 14259_ Relay Coupler [Swarmer] destroyed. 14260_ K-01 Serf cleans the Longscan Aggregator. 14262_ Penetrated by Slug. 14262_ Relay Coupler [Grunt] destroyed. 14262_ Enh. Optical Array destroyed. 14262_ Knocked back. 14263_ Penetrated by Slug. 14263_ Slammed into K-01 Serf. 14265_ Penetrated by Slug. Map ----- +----------------------------------------------------+ | ?????????????????????????????????????????????????? | | ?????????????????????????????????????????????????? | | ?????????????????????????????????????????????????? | | #+##+#???????????????????????????????????????????? | | #???????????????????????????????????????????? | | #???????????????????????????????????????????? | | ^ +???????????????????????????????????????????? | | #???????????????????????????????????????????? | | ####?????????????????????????????????????????????? | | ?????????????????????????????????????????????????? | | ?????????????????????????????????????????????????? | | ?????????????????????????????????????????????????? | | ?????????????????????????????????????????????????? | | ?????????????????????????????????????????????????? | | ????####?????????????????????????????????????????? | | ????# ????#############?????????? ? ????????? | | ????# ????#"""""""""""#???????## #????????? | | ????# ?### """"T"""" ######## ????????? | | ????# ?# k R ???????? | | ????# # ???????? | | ????# # h ??????? | | ?????? + k H ??????? | | ???????????# s%s ??????? | | ##### # s""hs R A ??????? | | / # "" #??????? | | ##?????????# """""" @ ##### ???????? | | ???????????# """"""k #????????#####???????? | | ???????????# "" = #????????????????????? | | ???????????# "" #????????????????????? | | ######?????# #????????????????????? | | #?????# s #????????????????????? | | #?????# #????????????????????? | | #?????# +????????????????????? | | #?????# p ######## #????????????????????? | | #?????# #??????? #????????????????????? | | #?????# p #??????? #????????????????????? | | ######?????# #??????? ????????????????????? | | ############ #??????? ????????????????????? | | #???????Y ????????????????????? | | ####################???????? ????????????????????? | | ?????????????????????????????????????????????????? | | ?????????????????????????????????????????????????? | | ?????????????????????????????????????????????????? | | ?????????????????????????????????????????????????? | | ?????????????????????????????????????????????????? | | ?????????????????????????????????????????????????? | | ?????????????????????????????????????????????????? | | ?????????????????????????????????????????????????? | | ?????????????????????????????????????????????????? | | | +----------------------------------------------------+ Best States ------------- Heat Dissipation 116 Coolant Potential 80 Energy Generation 45 Energy Capacity 600 Matter Stores 300 Matter Capacity 300 Sight Range 22 Robot Scan Range 18 Terrain Scan Density 10 Cloak Strength 4 Base Temperature (-) 200 Corruption Containment 12 Armor Coverage 900 Power Shielding 66 Propulsion Shielding 66 Phase Shifting 15 Evasion (%) 71 Targeting Accuracy 8 Target Analysis 12 Core Analysis 6 Recoil Reduction 6 Particle Charging 20 Offensive Hacking 14 Defensive Hacking 30 Relay Coupler Types 7 Relay Coupler Value 170 Item Schematics ----------------- Imp. Terrain Scan Processor | -9/Storage | Hacked Remote Datajack | -8/Materials | Scanalyzed Grenade Launcher | -8/Materials | Scanalyzed Hvy. Ion Engine | -8/Materials | Scanalyzed Terrain Scan Processor | -8/Materials | Extracted Med. Matter Pod | -8/Materials | Extracted Adv. Weight Redist. System | -8/Materials | Extracted Hvy. Particle Cannon | -8/Materials | Extracted Robot Schematics ------------------ O-24 Administrator | -7/Factory | Hacked Fabricated ------------ O-24 Administrator | x1 | -4/Factory Repaired ---------- Nothing Alien Tech Used ----------------- None Achievements -------------- None Challenges ------------ None Game ------ Seed DeliveryCatalystBallwheel Manual? 0 Play Time 01:52:24 Cumulative 1133.6 hours Start 2025.06.29 @ 12:36:51 End 2025.06.29 @ 14:38:57 Sessions 1 Manual Loads 0 Difficulty Rogue Special Mode None Game No. 1392 Rogue 1108 Adventurer 124 Explorer 160 Win Type - Total 50 Types 36/0/8/4/1/0/0/1/0/0 Lore% 92 Gallery% 88 Achievement% 81 Wizard Run 0 Options --------- Layout 0 ASCII 0 Keyboard 1 Movement Numpad Keybinds 0 Fullscreen 2 Font 18/X11 Map View 76x50 Zoom Use 0% Tactical HUD 1 Map Filters NONE Filters NONE Steam 1 RUN: 6984f0aa-e653-470d-ac05-00538d0886ff